fUSD/lending_fUSD_20240329
["ID","MTS","AMOUNT","RATE_DAILY","PERIOD"]
[320963958,1711722668229,-7547.93178815,0.00051298,28]
[320963959,1711722668239,-312.76,0.00051328,2]
[320963960,1711722668251,-151.0,0.00051342,120]
[320963961,1711722668261,-152.76860509,0.00051368,60]
[320963962,1711722668272,-152.99,0.000515,7]
[320963963,1711722668281,-500.0,0.00051506,120]
[320963964,1711722668291,-500.0,0.00051506,120]
[320963965,1711722668301,-500.0,0.00051506,120]
[320963966,1711722668311,-500.0,0.00051506,120]
[320963967,1711722668321,-500.0,0.00051506,120]
[320963968,1711722668330,-552.0,0.00051506,120]
[320963969,1711722668341,-500.0,0.00051506,120]
[320963970,1711722668350,-500.0,0.00051506,120]
[320963971,1711722668360,-500.0,0.00051506,120]
[320963972,1711722668370,-500.0,0.00051506,120]
[320963973,1711722668380,-500.0,0.00051506,120]
[320963974,1711722668390,-500.0,0.00051506,120]
[320963975,1711722668399,-500.0,0.00051506,120]
[320963976,1711722668409,-500.0,0.00051506,120]
[320963977,1711722668419,-500.0,0.00051506,120]
[320963978,1711722668429,-500.0,0.00051506,120]
[320963979,1711722668439,-500.0,0.00051506,120]
[320963980,1711722668449,-500.0,0.00051506,120]
[320963981,1711722668458,-500.0,0.00051506,120]
[320963982,1711722668468,-500.0,0.00051506,120]
[320963983,1711722668478,-500.0,0.00051506,120]
[320963984,1711722668489,-500.0,0.00051506,120]
[320963985,1711722668501,-500.0,0.00051506,120]
[320963986,1711722668511,-500.0,0.00051506,120]
[320963987,1711722668521,-500.0,0.00051506,120]
[320963988,1711722668530,-500.0,0.00051506,120]
[320963989,1711722668540,-500.0,0.00051506,120]
[320963990,1711722668750,-500.0,0.00051506,120]
[320963991,1711722668769,-500.0,0.00051506,120]
[320963992,1711722668780,-500.0,0.00051506,120]
[320963993,1711722668790,-500.0,0.00051506,120]
[320963994,1711722668800,-500.0,0.00051506,120]
[320963995,1711722668811,-500.0,0.00051506,120]
[320963996,1711722668822,-500.0,0.00051506,120]
[320963997,1711722668832,-500.0,0.00051506,120]
[320963998,1711722668842,-500.0,0.00051506,120]
[320963999,1711722668852,-500.0,0.00051506,120]
[320964000,1711722668863,-500.0,0.00051506,120]
[320964001,1711722668873,-403.4,0.00051506,120]
[320964002,1711722668883,-234.1,0.00051506,120]
[320964003,1711722668892,-500.0,0.00051506,120]
[320964004,1711722668902,-419.38,0.00051506,120]
[320964005,1711722668911,-500.0,0.00051506,120]
[320964006,1711722668920,-500.0,0.00051506,120]
[320964007,1711722668929,-500.0,0.00051506,120]
[320964008,1711722668939,-500.0,0.00051506,120]
[320964009,1711722668949,-500.0,0.00051506,120]
[320964010,1711722668958,-500.0,0.00051506,120]
[320964011,1711722668967,-500.0,0.00051506,120]
[320964012,1711722668976,-500.0,0.00051506,120]
[320964013,1711722668986,-500.0,0.00051506,120]
[320964014,1711722668997,-500.0,0.00051506,120]
[320964015,1711722669006,-500.0,0.00051506,120]
[320964016,1711722669016,-500.0,0.00051506,120]
[320964017,1711722669026,-500.0,0.00051506,120]
[320964018,1711722669036,-1185.26,0.00051506,120]
[320964019,1711722669046,-323.59,0.00051506,120]
[320964020,1711722669055,-1151.44,0.00051506,120]
[320964021,1711722669066,-500.0,0.00051506,120]
[320964022,1711722669077,-500.0,0.00051506,120]
[320964023,1711722669086,-1817.45,0.00051506,120]
[320964024,1711722669096,-500.0,0.00051506,120]
[320964025,1711722669105,-500.0,0.00051506,120]
[320964026,1711722669115,-500.0,0.00051506,120]
[320964027,1711722669124,-1906.86,0.00051506,120]
[320964028,1711722669133,-500.0,0.00051506,120]
[320964029,1711722669143,-671.09,0.00051506,120]
[320964030,1711722669153,-500.0,0.00051506,120]
[320964031,1711722669162,-538.77,0.00051506,120]
[320964032,1711722669172,-500.0,0.00051506,120]
[320964033,1711722669182,-500.0,0.00051506,120]
[320964034,1711722669191,-1454.29,0.00051506,120]
[320964035,1711722669201,-500.0,0.00051506,120]
[320964036,1711722669210,-500.0,0.00051506,120]
[320964037,1711722669219,-500.0,0.00051506,120]
[320964038,1711722669229,-500.0,0.00051506,120]
[320964039,1711722669239,-500.0,0.00051506,120]
[320964040,1711722669250,-500.0,0.00051506,120]
[320964041,1711722669259,-500.0,0.00051506,120]
[320964042,1711722669269,-500.0,0.00051506,120]
[320964043,1711722669278,-2220.6,0.00051506,120]
[320964044,1711722669288,-500.0,0.00051506,120]
[320964045,1711722669297,-500.0,0.00051506,120]
[320964046,1711722669306,-1554.88,0.00051506,120]
[320964047,1711722669316,-585.13,0.00051506,120]
[320964048,1711722669325,-500.0,0.00051506,120]
[320964049,1711722669335,-2440.61,0.00051506,120]
[320964050,1711722669344,-1267.7,0.00051506,120]
[320964051,1711722669354,-500.0,0.00051506,120]
[320964052,1711722669363,-500.0,0.00051506,120]
[320964053,1711722669373,-500.0,0.00051506,120]
[320964054,1711722669382,-500.0,0.00051506,120]
[320964055,1711722669391,-500.0,0.00051506,120]
[320964056,1711722669400,-500.0,0.00051506,120]
[320964057,1711722669409,-500.0,0.00051506,120]
[320964058,1711722669419,-500.0,0.00051506,120]
[320964059,1711722669429,-1773.8,0.00051506,120]
[320964060,1711722669439,-4495.59,0.00051506,120]
[320964061,1711722669448,-500.0,0.00051506,120]
[320964062,1711722669458,-500.0,0.00051506,120]
[320964063,1711722669467,-3126.77,0.00051506,120]
[320964064,1711722669477,-500.0,0.00051506,120]
[320964065,1711722669487,-2640.0,0.00051506,120]
[320964066,1711722669497,-500.0,0.00051506,120]
[320964067,1711722669507,-500.0,0.00051506,120]
[320964068,1711722669516,-500.0,0.00051506,120]
[320964069,1711722669525,-1646.75,0.00051506,120]
[320964070,1711722669534,-500.0,0.00051506,120]
[320964071,1711722669544,-857.96,0.00051506,21]
[320964072,1711722669554,-1023.06,0.00051506,120]
[320964073,1711722669564,-156.57235485,0.00051545,60]
[320964074,1711722669573,-152.41256319,0.0005155,60]
[320964075,1711722669583,-243.27777778,0.00051616,120]
[320964076,1711722669593,-153.88,0.00051726,120]
[320964077,1711722669602,-500.0,0.0005178,120]
[320964078,1711722669612,-500.0,0.0005178,120]
[320964079,1711722669621,-500.0,0.0005178,120]
[320964080,1711722669631,-500.0,0.0005178,120]
[320964081,1711722669641,-500.0,0.0005178,120]
[320964082,1711722669651,-500.0,0.0005178,120]
[320964083,1711722669661,-500.0,0.0005178,120]
[320964084,1711722669671,-500.0,0.0005178,120]
[320964085,1711722669681,-500.0,0.0005178,120]
[320964086,1711722669690,-500.0,0.0005178,120]
[320964087,1711722669700,-500.0,0.0005178,120]
[320964088,1711722669709,-500.0,0.0005178,120]
[320964089,1711722669718,-500.0,0.0005178,120]
[320964090,1711722669727,-500.0,0.0005178,120]
[320964091,1711722669737,-500.0,0.0005178,120]
[320964092,1711722669747,-500.0,0.0005178,120]
[320964093,1711722669756,-500.0,0.0005178,120]
[320964094,1711722669765,-500.0,0.0005178,120]
[320964095,1711722669775,-500.0,0.0005178,120]
[320964096,1711722669784,-500.0,0.0005178,120]
[320964097,1711722669794,-500.0,0.0005178,120]
[320964098,1711722669804,-500.0,0.0005178,120]
[320964099,1711722669814,-500.0,0.0005178,120]
[320964100,1711722669823,-500.0,0.0005178,120]
[320964101,1711722669833,-500.0,0.0005178,120]
[320964102,1711722669842,-500.0,0.0005178,120]
[320964103,1711722669851,-500.0,0.0005178,120]
[320964104,1711722669861,-500.0,0.0005178,120]
[320964105,1711722669870,-500.0,0.0005178,120]
[320964106,1711722669880,-500.0,0.0005178,120]
[320964107,1711722669889,-500.0,0.0005178,120]
[320964108,1711722669899,-500.0,0.0005178,120]
[320964109,1711722669909,-500.0,0.0005178,120]
[320964110,1711722669919,-500.0,0.0005178,120]
[320964111,1711722669929,-500.0,0.0005178,120]
[320964112,1711722669939,-500.0,0.0005178,120]
[320964113,1711722669949,-378.85,0.0005178,120]
[320964114,1711722669960,-500.0,0.0005178,120]
[320964115,1711722669969,-500.0,0.0005178,120]
[320964116,1711722669979,-500.0,0.0005178,120]
[320964117,1711722669989,-500.0,0.0005178,120]
[320964118,1711722670000,-500.0,0.0005178,120]
[320964119,1711722670009,-500.0,0.0005178,120]
[320964120,1711722670019,-500.0,0.0005178,120]
[320964121,1711722670028,-500.0,0.0005178,120]
[320964122,1711722670038,-500.0,0.0005178,120]
[320964123,1711722670048,-500.0,0.0005178,120]
[320964124,1711722670059,-1000.0,0.0005178,72]
[320964125,1711722670071,-500.0,0.0005178,120]
[320964126,1711722670080,-500.0,0.0005178,120]
[320964127,1711722670090,-548.49,0.0005178,120]
[320964128,1711722670101,-500.0,0.0005178,120]
[320964129,1711722670110,-1185.26,0.0005178,120]
[320964130,1711722670119,-1151.44,0.0005178,120]
[320964131,1711722670128,-500.0,0.0005178,120]
[320964132,1711722670139,-500.0,0.0005178,120]
[320964133,1711722670148,-1817.45,0.0005178,120]
[320964134,1711722670158,-500.0,0.0005178,120]
[320964135,1711722670167,-500.0,0.0005178,120]
[320964136,1711722670176,-497.92,0.0005178,120]
[320964137,1711722670186,-1906.86,0.0005178,120]
[320964138,1711722670195,-500.0,0.0005178,120]
[320964139,1711722670205,-671.09,0.0005178,120]
[320964140,1711722670214,-500.0,0.0005178,120]
[320964141,1711722670225,-538.77,0.0005178,120]
[320964142,1711722670235,-500.0,0.0005178,120]
[320964143,1711722670244,-500.0,0.0005178,120]
[320964144,1711722670255,-1454.29,0.0005178,120]
[320964145,1711722670265,-500.0,0.0005178,120]
[320964146,1711722670275,-500.0,0.0005178,120]
[320964147,1711722670284,-500.0,0.0005178,120]
[320964148,1711722670294,-500.0,0.0005178,120]
[320964149,1711722670303,-500.0,0.0005178,120]
[320964150,1711722670313,-500.0,0.0005178,120]
[320964151,1711722670322,-500.0,0.0005178,120]
[320964152,1711722670332,-500.0,0.0005178,120]
[320964153,1711722670342,-2220.6,0.0005178,120]
[320964154,1711722670351,-500.0,0.0005178,120]
[320964155,1711722670361,-1554.88,0.0005178,120]
[320964156,1711722670371,-585.13,0.0005178,120]
[320964157,1711722670381,-416.88,0.0005178,120]
[320964158,1711722670392,-2440.61,0.0005178,120]
[320964159,1711722670402,-1267.7,0.0005178,120]
[320964160,1711722670412,-500.0,0.0005178,120]
[320964161,1711722670421,-500.0,0.0005178,120]
[320964162,1711722670431,-500.0,0.0005178,120]
[320964163,1711722670442,-500.0,0.0005178,120]
[320964164,1711722670451,-500.0,0.0005178,120]
[320964165,1711722670462,-500.0,0.0005178,120]
[320964166,1711722670471,-454.04,0.0005178,120]
[320964167,1711722670481,-500.0,0.0005178,120]
[320964168,1711722670491,-1773.8,0.0005178,120]
[320964169,1711722670504,-4495.59,0.0005178,120]
[320964170,1711722670514,-500.0,0.0005178,120]
[320964171,1711722670523,-500.0,0.0005178,120]
[320964172,1711722670533,-3126.77,0.0005178,120]
[320964173,1711722670541,-500.0,0.0005178,120]
[320964174,1711722670551,-2640.0,0.0005178,120]
[320964175,1711722670560,-500.0,0.0005178,120]
[320964176,1711722670569,-500.0,0.0005178,120]
[320964177,1711722670579,-500.0,0.0005178,120]
[320964178,1711722670588,-1646.75,0.0005178,120]
[320964179,1711722670597,-500.0,0.0005178,120]
[320964180,1711722670607,-857.96,0.0005178,21]
[320964181,1711722670616,-1023.06,0.0005178,120]
[320964182,1711722670625,-195.98,0.000518,7]
[320964183,1711722670635,-154.8752919,0.00051828,60]
[320964184,1711722670644,-262.98,0.000519,7]
[320964185,1711722670654,-514.62,0.000519,7]
[320964186,1711722670663,-150.0,0.00051951,10]
[320964187,1711722670675,-150.0,0.00051954,10]
[320964188,1711722670684,-150.0,0.00051974,10]
[320964189,1711722670693,-472.7885742,0.00052,49]
[320964190,1711722670703,-379.32515966,0.00052,120]
[320964191,1711722670713,-809.92,0.00052,7]
[320964192,1711722670723,-421.0110837,0.00052051,30]
[320964193,1711722670732,-200.0,0.00052054,120]
[320964194,1711722670741,-200.0,0.00052054,120]
[320964195,1711722670753,-200.0,0.00052054,120]
[320964196,1711722670762,-200.0,0.00052054,120]
[320964197,1711722670772,-200.0,0.00052054,120]
[320964198,1711722670781,-200.0,0.00052054,120]
[320964199,1711722670791,-200.0,0.00052054,120]
[320964200,1711722670801,-200.0,0.00052054,120]
[320964201,1711722670813,-200.0,0.00052054,120]
[320964202,1711722670822,-200.0,0.00052054,120]
[320964203,1711722670831,-206.1102278,0.00052054,120]
[320964204,1711722670841,-500.0,0.00052054,120]
[320964205,1711722670850,-500.0,0.00052054,120]
[320964206,1711722670860,-500.0,0.00052054,120]
[320964207,1711722670869,-500.0,0.00052054,120]
[320964208,1711722670879,-215.71,0.00052054,120]
[320964209,1711722670889,-500.0,0.00052054,120]
[320964210,1711722670898,-500.0,0.00052054,120]
[320964211,1711722670907,-500.0,0.00052054,120]
[320964212,1711722670917,-500.0,0.00052054,120]
[320964213,1711722670926,-500.0,0.00052054,120]
[320964214,1711722670935,-500.0,0.00052054,120]
[320964215,1711722670944,-500.0,0.00052054,120]
[320964216,1711722670954,-500.0,0.00052054,120]
[320964217,1711722670963,-500.0,0.00052054,120]
[320964218,1711722670973,-500.0,0.00052054,120]
[320964219,1711722670982,-500.0,0.00052054,120]
[320964220,1711722670991,-500.0,0.00052054,120]
[320964221,1711722671002,-500.0,0.00052054,120]
[320964222,1711722671011,-500.0,0.00052054,120]
[320964223,1711722671020,-500.0,0.00052054,120]
[320964224,1711722671029,-500.0,0.00052054,120]
[320964225,1711722671039,-500.0,0.00052054,120]
[320964226,1711722671048,-500.0,0.00052054,120]
[320964227,1711722671058,-500.0,0.00052054,120]
[320964228,1711722671114,-500.0,0.00052054,120]
[320964229,1711722671124,-500.0,0.00052054,120]
[320964230,1711722671134,-500.0,0.00052054,120]
[320964231,1711722671143,-500.0,0.00052054,120]
[320964232,1711722671153,-500.0,0.00052054,120]
[320964233,1711722671163,-500.0,0.00052054,120]
[320964234,1711722671173,-500.0,0.00052054,120]
[320964235,1711722671182,-500.0,0.00052054,120]
[320964236,1711722671192,-500.0,0.00052054,120]
[320964237,1711722671201,-500.0,0.00052054,120]
[320964238,1711722671210,-500.0,0.00052054,120]
[320964239,1711722671220,-500.0,0.00052054,120]
[320964240,1711722671229,-500.0,0.00052054,120]
[320964241,1711722671238,-500.0,0.00052054,120]
[320964242,1711722671248,-500.0,0.00052054,120]
[320964243,1711722671258,-313.45816906,0.00052054,120]
[320964244,1711722671267,-500.0,0.00052054,120]
[320964245,1711722671277,-500.0,0.00052054,120]
[320964246,1711722671286,-500.0,0.00052054,120]
[320964247,1711722671295,-500.0,0.00052054,120]
[320964248,1711722671305,-500.0,0.00052054,120]
[320964249,1711722671314,-500.0,0.00052054,120]
[320964250,1711722671323,-500.0,0.00052054,120]
[320964251,1711722671333,-500.0,0.00052054,120]
[320964252,1711722671342,-500.0,0.00052054,120]
[320964253,1711722671352,-1185.26,0.00052054,120]
[320964254,1711722671361,-1151.44,0.00052054,120]
[320964255,1711722671370,-500.0,0.00052054,120]
[320964256,1711722671380,-500.0,0.00052054,120]
[320964257,1711722671389,-1817.45,0.00052054,120]
[320964258,1711722671398,-500.0,0.00052054,120]
[320964259,1711722671408,-500.0,0.00052054,120]
[320964260,1711722671417,-1906.86,0.00052054,120]
[320964261,1711722671426,-500.0,0.00052054,120]
[320964262,1711722671435,-671.09,0.00052054,120]
[320964263,1711722671444,-500.0,0.00052054,120]
[320964264,1711722671453,-538.77,0.00052054,120]
[320964265,1711722671462,-500.0,0.00052054,120]
[320964266,1711722671473,-500.0,0.00052054,120]
[320964267,1711722671482,-1454.29,0.00052054,120]
[320964268,1711722671491,-500.0,0.00052054,120]
[320964269,1711722671504,-500.0,0.00052054,120]
[320964270,1711722671514,-500.0,0.00052054,120]
[320964271,1711722671523,-500.0,0.00052054,120]
[320964272,1711722671533,-500.0,0.00052054,120]
[320964273,1711722671542,-497.04,0.00052054,120]
[320964274,1711722671552,-500.0,0.00052054,120]
[320964275,1711722671561,-500.0,0.00052054,120]
[320964276,1711722671571,-2220.6,0.00052054,120]
[320964277,1711722671580,-500.0,0.00052054,120]
[320964278,1711722671589,-1554.88,0.00052054,120]
[320964279,1711722671598,-585.13,0.00052054,120]
[320964280,1711722671608,-2440.61,0.00052054,120]
[320964281,1711722671617,-1267.7,0.00052054,120]
[320964282,1711722671626,-500.0,0.00052054,120]
[320964283,1711722671636,-500.0,0.00052054,120]
[320964284,1711722671645,-500.0,0.00052054,120]
[320964285,1711722671655,-500.0,0.00052054,120]
[320964286,1711722671665,-500.0,0.00052054,120]
[320964287,1711722671674,-500.0,0.00052054,120]
[320964288,1711722671685,-500.0,0.00052054,120]
[320964289,1711722671694,-1773.8,0.00052054,120]
[320964290,1711722671703,-4495.59,0.00052054,120]
[320964291,1711722671713,-500.0,0.00052054,120]
[320964292,1711722671722,-500.0,0.00052054,120]
[320964293,1711722671732,-3126.77,0.00052054,120]
[320964294,1711722671741,-500.0,0.00052054,120]
[320964295,1711722671751,-2640.0,0.00052054,120]
[320964296,1711722671761,-230.37,0.00052054,120]
[320964297,1711722671770,-500.0,0.00052054,120]
[320964298,1711722671780,-500.0,0.00052054,120]
[320964299,1711722671789,-1646.75,0.00052054,120]
[320964300,1711722671799,-500.0,0.00052054,120]
[320964301,1711722671809,-857.96,0.00052054,21]
[320964302,1711722671818,-1023.06,0.00052054,120]
[320964303,1711722671827,-152.41256319,0.00052055,60]
[320964304,1711722671837,-155.9315293,0.00052204,60]
[320964305,1711722671847,-243.27777778,0.00052219,120]
[320964306,1711722671857,-156.57235485,0.00052298,60]
[320964307,1711722671866,-152.41256319,0.00052314,60]
[320964308,1711722671875,-500.0,0.00052328,120]
[320964309,1711722671884,-500.0,0.00052328,120]
[320964310,1711722671893,-500.0,0.00052328,120]
[320964311,1711722671902,-500.0,0.00052328,120]
[320964312,1711722671911,-500.0,0.00052328,120]
[320964313,1711722671921,-500.0,0.00052328,120]
[320964314,1711722671930,-500.0,0.00052328,120]
[320964315,1711722671939,-500.0,0.00052328,120]
[320964316,1711722671948,-500.0,0.00052328,120]
[320964317,1711722671957,-500.0,0.00052328,120]
[320964318,1711722671966,-500.0,0.00052328,120]
[320964319,1711722671975,-500.0,0.00052328,120]
[320964320,1711722671984,-500.0,0.00052328,120]
[320964321,1711722671993,-464.14,0.00052328,120]
[320964322,1711722672004,-500.0,0.00052328,120]
[320964323,1711722672013,-500.0,0.00052328,120]
[320964324,1711722672021,-500.0,0.00052328,120]
[320964325,1711722672030,-500.0,0.00052328,120]
[320964326,1711722672039,-500.0,0.00052328,120]
[320964327,1711722672048,-500.0,0.00052328,120]
[320964328,1711722672060,-500.0,0.00052328,120]
[320964329,1711722672070,-191.56,0.00052328,120]
[320964330,1711722672079,-614.2,0.00052328,120]
[320964331,1711722672088,-420.04,0.00052328,120]
[320964332,1711722672098,-500.0,0.00052328,120]
[320964333,1711722672107,-500.0,0.00052328,120]
[320964334,1711722672116,-450.34,0.00052328,120]
[320964335,1711722672125,-500.0,0.00052328,120]
[320964336,1711722672135,-500.0,0.00052328,120]
[320964337,1711722672144,-500.0,0.00052328,120]
[320964338,1711722672153,-482.98,0.00052328,120]
[320964339,1711722672162,-500.0,0.00052328,120]
[320964340,1711722672171,-500.0,0.00052328,120]
[320964341,1711722672180,-271.68,0.00052328,120]
[320964342,1711722672189,-500.0,0.00052328,120]
[320964343,1711722672199,-429.14,0.00052328,120]
[320964344,1711722672208,-500.0,0.00052328,120]
[320964345,1711722672217,-500.0,0.00052328,120]
[320964346,1711722672226,-500.0,0.00052328,120]
[320964347,1711722672235,-500.0,0.00052328,120]
[320964348,1711722672244,-500.0,0.00052328,120]
[320964349,1711722672255,-500.0,0.00052328,120]
[320964350,1711722672264,-500.0,0.00052328,120]
[320964351,1711722672273,-500.0,0.00052328,120]
[320964352,1711722672283,-500.0,0.00052328,120]
[320964353,1711722672292,-500.0,0.00052328,120]
[320964354,1711722672301,-500.0,0.00052328,120]
[320964355,1711722672311,-1185.26,0.00052328,120]
[320964356,1711722672320,-1151.44,0.00052328,120]
[320964357,1711722672330,-500.0,0.00052328,120]
[320964358,1711722672339,-500.0,0.00052328,120]
[320964359,1711722672349,-1817.45,0.00052328,120]
[320964360,1711722672358,-500.0,0.00052328,120]
[320964361,1711722672368,-500.0,0.00052328,120]
[320964362,1711722672378,-1906.86,0.00052328,120]
[320964363,1711722672387,-500.0,0.00052328,120]
[320964364,1711722672396,-671.09,0.00052328,120]
[320964365,1711722672406,-500.0,0.00052328,120]
[320964366,1711722672416,-538.77,0.00052328,120]
[320964367,1711722672425,-500.0,0.00052328,120]
[320964368,1711722672434,-500.0,0.00052328,120]
[320964369,1711722672443,-1454.29,0.00052328,120]
[320964370,1711722672452,-500.0,0.00052328,120]
[320964371,1711722672462,-500.0,0.00052328,120]
[320964372,1711722672471,-500.0,0.00052328,120]
[320964373,1711722672481,-500.0,0.00052328,120]
[320964374,1711722672490,-500.0,0.00052328,120]
[320964375,1711722672499,-500.0,0.00052328,120]
[320964376,1711722672508,-500.0,0.00052328,120]
[320964377,1711722672518,-2220.6,0.00052328,120]
[320964378,1711722672526,-500.0,0.00052328,120]
[320964379,1711722672535,-1554.88,0.00052328,120]
[320964380,1711722672545,-585.13,0.00052328,120]
[320964381,1711722672554,-2440.61,0.00052328,120]
[320964382,1711722672564,-500.0,0.00052328,120]
[320964383,1711722672573,-1267.7,0.00052328,120]
[320964384,1711722672583,-500.0,0.00052328,120]
[320964385,1711722672593,-500.0,0.00052328,120]
[320964386,1711722672602,-500.0,0.00052328,120]
[320964387,1711722672612,-500.0,0.00052328,120]
[320964388,1711722672622,-500.0,0.00052328,120]
[320964389,1711722672632,-500.0,0.00052328,120]
[320964390,1711722672642,-1773.8,0.00052328,120]
[320964391,1711722672654,-4495.59,0.00052328,120]
[320964392,1711722672664,-500.0,0.00052328,120]
[320964393,1711722672673,-500.0,0.00052328,120]
[320964394,1711722672684,-3126.77,0.00052328,120]
[320964395,1711722672694,-500.0,0.00052328,120]
[320964396,1711722672704,-2640.0,0.00052328,120]
[320964397,1711722672713,-500.0,0.00052328,120]
[320964398,1711722672722,-500.0,0.00052328,120]
[320964399,1711722672732,-1646.75,0.00052328,120]
[320964400,1711722672741,-440.78688602,0.00052328,120]
[320964401,1711722672750,-857.96,0.00052328,21]
[320964402,1711722672759,-1023.06,0.00052328,120]
[320964403,1711722672769,-150.72698386,0.00052448,53]
[320964404,1711722672778,-151.31,0.000525,10]
[320964405,1711722672787,-152.76860509,0.00052563,60]
[320964406,1711722672796,-10036.32396178,0.00052599,51]
[320964407,1711722672805,-500.0,0.00052602,120]
[320964408,1711722672814,-500.0,0.00052602,120]
[320964409,1711722672824,-500.0,0.00052602,120]
[320964410,1711722672833,-500.0,0.00052602,120]
[320964411,1711722672842,-500.0,0.00052602,120]
[320964412,1711722672851,-500.0,0.00052602,120]
[320964413,1711722672861,-347.04,0.00052602,120]
[320964414,1711722672870,-500.0,0.00052602,120]
[320964415,1711722672879,-581.14,0.00052602,120]
[320964416,1711722672888,-500.0,0.00052602,120]
[320964417,1711722672897,-500.0,0.00052602,120]
[320964418,1711722672906,-500.0,0.00052602,120]
[320964419,1711722672915,-500.0,0.00052602,120]
[320964420,1711722672924,-500.0,0.00052602,120]
[320964421,1711722672933,-500.0,0.00052602,120]
[320964422,1711722672942,-500.0,0.00052602,120]
[320964423,1711722672951,-536.17,0.00052602,120]
[320964424,1711722672960,-500.0,0.00052602,120]
[320964425,1711722672969,-345.5,0.00052602,120]
[320964426,1711722672978,-419.6,0.00052602,120]
[320964427,1711722672987,-241.88,0.00052602,120]
[320964428,1711722672997,-317.3,0.00052602,120]
[320964429,1711722673008,-500.0,0.00052602,120]
[320964430,1711722673017,-500.0,0.00052602,120]
[320964431,1711722673026,-573.13,0.00052602,120]
[320964432,1711722673035,-481.22,0.00052602,120]
[320964433,1711722673044,-500.0,0.00052602,120]
[320964434,1711722673053,-171.5,0.00052602,120]
[320964435,1711722673062,-500.0,0.00052602,120]
[320964436,1711722673075,-500.0,0.00052602,120]
[320964437,1711722673084,-500.0,0.00052602,120]
[320964438,1711722673093,-500.0,0.00052602,120]
[320964439,1711722673102,-500.0,0.00052602,120]
[320964440,1711722673112,-500.0,0.00052602,120]
[320964441,1711722673121,-500.0,0.00052602,120]
[320964442,1711722673130,-500.0,0.00052602,120]
[320964443,1711722673139,-1000.0,0.00052602,120]
[320964444,1711722673148,-500.0,0.00052602,120]
[320964445,1711722673157,-500.0,0.00052602,120]
[320964446,1711722673167,-500.0,0.00052602,120]
[320964447,1711722673176,-1185.26,0.00052602,120]
[320964448,1711722673185,-1151.44,0.00052602,120]
[320964449,1711722673194,-500.0,0.00052602,120]
[320964450,1711722673203,-500.0,0.00052602,120]
[320964451,1711722673213,-1817.45,0.00052602,120]
[320964452,1711722673222,-500.0,0.00052602,120]
[320964453,1711722673231,-500.0,0.00052602,120]
[320964454,1711722673240,-1906.86,0.00052602,120]
[320964455,1711722673251,-500.0,0.00052602,120]
[320964456,1711722673260,-671.09,0.00052602,120]
[320964457,1711722673269,-500.0,0.00052602,120]